fUST/lending_fUST_20250608
["ID","MTS","AMOUNT","RATE_DAILY","PERIOD"]
[364995753,1749387046796,-440.0,0.00021643,2]
[364995754,1749387046806,-440.0,0.00021643,2]
[364995755,1749387046816,-1405.05,0.00021643,2]
[364995756,1749387046825,-440.0,0.00021643,2]
[364995757,1749387046835,-787.19,0.00021643,2]
[364995758,1749387046845,-440.0,0.00021643,2]
[364995759,1749387046854,-440.0,0.00021643,2]
[364995760,1749387046864,-440.0,0.00021643,2]
[364995761,1749387046873,-440.0,0.00021643,2]
[364995762,1749387046883,-1464.15,0.00021643,2]
[364995763,1749387046893,-440.0,0.00021643,2]
[364995764,1749387046902,-440.0,0.00021643,2]
[364995765,1749387046912,-440.0,0.00021643,2]
[364995766,1749387046921,-429.70771293,0.00021643,2]
[364995767,1749387046931,-440.0,0.00021643,2]
[364995768,1749387046941,-440.0,0.00021643,2]
[364995770,1749387046951,-717.45,0.00021643,2]
[364995772,1749387046960,-1568.99,0.00021643,2]
[364995774,1749387046970,-771.02,0.00021643,2]
[364995776,1749387046979,-5270.98,0.00021643,2]
[364995778,1749387046988,-642.78,0.00021643,2]
[364995780,1749387046998,-3877.05,0.00021643,2]
[364995782,1749387047008,-440.0,0.00021643,2]
[364995784,1749387047017,-969.82,0.00021643,2]
[364995786,1749387047028,-2682.54,0.00021643,2]
[364995788,1749387047037,-440.0,0.00021643,2]
[364995790,1749387047047,-2559.93,0.00021643,2]
[364995792,1749387047056,-1887.69,0.00021643,2]
[364995794,1749387047067,-448.69481526,0.00021643,2]
[364995796,1749387047076,-3688.68,0.00021643,2]
[364995798,1749387047086,-455.86,0.00021643,2]
[364995800,1749387047095,-570.95,0.00021643,2]
[364995802,1749387047105,-499.81,0.00021643,2]
[364995804,1749387047114,-2620.54,0.00021643,2]
[364995806,1749387047123,-3461.52,0.00021643,2]
[364995808,1749387047133,-2095.87,0.00021643,2]
[364995809,1749387047143,-718.43,0.00021643,2]
[364995811,1749387047154,-440.0,0.00021643,2]
[364995813,1749387047163,-440.0,0.00021643,2]
[364995815,1749387047173,-2802.22,0.00021643,2]
[364995817,1749387047183,-993.84,0.00021643,2]
[364995819,1749387047194,-780.04,0.00021643,2]
[364995822,1749387047203,-910.07,0.00021643,2]
[364995824,1749387047212,-500.0,0.00021652,2]
[364995825,1749387047222,-500.0,0.00021652,2]
[364995827,1749387047231,-500.0,0.00021652,2]
[364995829,1749387047241,-500.0,0.00021652,2]
[364995831,1749387047251,-500.0,0.00021652,2]
[364995833,1749387047260,-500.0,0.00021652,2]
[364995836,1749387047270,-500.0,0.00021652,2]
[364995838,1749387047280,-500.0,0.00021652,2]
[364995840,1749387047289,-469.09706891,0.00021652,2]
[364995842,1749387047299,-500.0,0.00021652,2]
[364995844,1749387047308,-500.0,0.00021652,2]
[364995846,1749387047318,-500.0,0.00021652,2]
[364995847,1749387047327,-800.0,0.00021661,2]
[364995850,1749387047337,-500.0,0.00021725,2]
[364995852,1749387047347,-2730.48,0.000218,2]
[364995854,1749387047356,-232.04990197,0.00021823,2]
[364995856,1749387047365,-5000.0,0.00021823,2]
[364995857,1749387047375,-207.4,0.00021823,2]
[364995859,1749387047384,-500.0,0.00021823,2]
[364995861,1749387047394,-500.0,0.00021823,2]
[364995863,1749387047403,-500.0,0.00021823,2]
[364995865,1749387047413,-500.0,0.00021823,2]
[364995868,1749387047423,-500.0,0.00021823,2]
[364995870,1749387047434,-500.0,0.00021823,2]
[364995872,1749387047444,-500.0,0.00021823,2]
[364995874,1749387047453,-500.0,0.00021823,2]
[364995876,1749387047463,-500.0,0.00021823,2]
[364995878,1749387047473,-500.0,0.00021823,2]
[364995880,1749387047483,-500.0,0.00021823,2]
[364995881,1749387047493,-500.0,0.00021823,2]
[364995883,1749387047503,-500.0,0.00021823,2]
[364995885,1749387047512,-500.0,0.00021823,2]
[364995887,1749387047521,-500.0,0.00021823,2]
[364995889,1749387047531,-500.0,0.00021855,2]
[364995891,1749387047541,-153.75662207,0.00021855,2]
[364995893,1749387047551,-260.43285139,0.00021855,2]
[364995895,1749387047561,-399.78354313,0.00021855,2]
[364995897,1749387047571,-364.8515477,0.00021863,2]
[364995899,1749387047582,-364.8515477,0.00021863,2]
[364995901,1749387047592,-364.1722852,0.00021863,2]
[364995903,1749387047602,-364.8515477,0.00021863,2]
[364995917,1749387047727,-500.0,0.00021892,2]
[364995919,1749387047738,-500.0,0.00021892,2]
[364995921,1749387047749,-258.43259908,0.00021892,2]
[364995923,1749387047759,-151.0,0.000219,4]
[364995925,1749387047769,-1607.79,0.000219,2]
[364995927,1749387047779,-440.0,0.00021917,2]
[364995929,1749387047788,-440.0,0.00021917,2]
[364995931,1749387047798,-440.0,0.00021917,2]
[364995933,1749387047807,-440.0,0.00021917,2]
[364995935,1749387047816,-440.0,0.00021917,2]
[364995937,1749387047826,-440.0,0.00021917,2]
[364995939,1749387047837,-1099.04,0.00021917,2]
[364995941,1749387047847,-440.0,0.00021917,2]
[364995943,1749387047857,-400.0,0.00021917,2]
[364995945,1749387047867,-400.0,0.00021917,2]
[364995947,1749387047877,-400.0,0.00021917,2]
[364995949,1749387047887,-400.0,0.00021917,2]
[364995951,1749387047898,-400.0,0.00021917,2]
[364995953,1749387047908,-400.0,0.00021917,2]
[364995955,1749387047918,-400.0,0.00021917,2]
[364995957,1749387047928,-400.0,0.00021917,2]
[364995959,1749387047938,-400.0,0.00021917,2]
[364995961,1749387047948,-400.0,0.00021917,2]
[364995963,1749387047957,-400.0,0.00021917,2]
[364995965,1749387047967,-440.0,0.00021917,2]
[364995967,1749387047977,-440.0,0.00021917,2]
[364995969,1749387047987,-440.0,0.00021917,2]
[364995971,1749387047997,-1405.05,0.00021917,2]
[364995973,1749387048007,-440.0,0.00021917,2]
[364995975,1749387048018,-787.19,0.00021917,2]
[364995978,1749387048028,-440.0,0.00021917,2]
[364995980,1749387048038,-500.0,0.00021917,2]
[364995983,1749387048062,-500.0,0.00021917,2]
[364995985,1749387048074,-500.0,0.00021917,2]
[364995987,1749387048085,-500.0,0.00021917,2]
[364995989,1749387048096,-500.0,0.00021917,2]
[364995991,1749387048106,-508.34594437,0.00021917,2]
[364995993,1749387048116,-440.0,0.00021917,2]
[364995995,1749387048127,-440.0,0.00021917,2]
[364995997,1749387048137,-1464.15,0.00021917,2]
[364996000,1749387048150,-440.0,0.00021917,2]
[364996002,1749387048160,-440.0,0.00021917,2]
[364996004,1749387048171,-440.0,0.00021917,2]
[364996006,1749387048181,-440.0,0.00021917,2]
[364996008,1749387048194,-440.0,0.00021917,2]
[364996010,1749387048204,-717.45,0.00021917,2]
[364996012,1749387048215,-1568.99,0.00021917,2]
[364996014,1749387048227,-771.02,0.00021917,2]
[364996016,1749387048239,-500.0,0.00021917,2]
[364996018,1749387048249,-5270.98,0.00021917,2]
[364996020,1749387048260,-642.78,0.00021917,2]
[364996022,1749387048271,-3877.05,0.00021917,2]
[364996023,1749387048282,-440.0,0.00021917,2]
[364996024,1749387048293,-969.82,0.00021917,2]
[364996025,1749387048303,-2682.54,0.00021917,2]
[364996026,1749387048313,-440.0,0.00021917,2]
[364996027,1749387048325,-2559.93,0.00021917,2]
[364996028,1749387048337,-1887.69,0.00021917,2]
[364996029,1749387048347,-3688.68,0.00021917,2]
[364996030,1749387048358,-455.86,0.00021917,2]
[364996031,1749387048368,-570.95,0.00021917,2]
[364996032,1749387048380,-499.81,0.00021917,2]
[364996033,1749387048391,-2620.54,0.00021917,2]
[364996034,1749387048401,-3461.52,0.00021917,2]
[364996035,1749387048413,-2095.87,0.00021917,2]
[364996036,1749387048423,-718.43,0.00021917,2]
[364996037,1749387048434,-440.0,0.00021917,2]
[364996038,1749387048445,-440.0,0.00021917,2]
[364996039,1749387048455,-993.84,0.00021917,2]
[364996040,1749387048466,-2802.22,0.00021917,2]
[364996041,1749387048477,-780.04,0.00021917,2]
[364996042,1749387048487,-910.07,0.00021917,2]
[364996043,1749387048497,-273.35850707,0.00021918,2]
[364996044,1749387048507,-500.0,0.0002192,2]
[364996045,1749387048517,-500.0,0.0002192,2]
[364996046,1749387048528,-500.0,0.0002192,2]
[364996047,1749387048539,-500.0,0.0002192,2]
[364996048,1749387048549,-500.0,0.0002192,2]
[364996049,1749387048559,-600.0,0.0002192,2]
[364996050,1749387048571,-500.0,0.0002192,2]
[364996051,1749387048582,-504.14233961,0.0002192,2]
[364996052,1749387048592,-500.0,0.0002192,2]
[364996053,1749387048602,-500.0,0.0002192,2]
[364996054,1749387048612,-500.0,0.0002192,2]
[364996055,1749387048623,-501.45438873,0.0002192,2]
[364996056,1749387048633,-2200.0,0.00021978,2]
[364996057,1749387048643,-166.0,0.00022,2]
[364996058,1749387048653,-166.0,0.00022,2]
[364996059,1749387048668,-171.0,0.00022,2]
[364996060,1749387048679,-260.03288424,0.00022063,2]
[364996061,1749387048689,-160.02023645,0.00022063,2]
[364996062,1749387048699,-160.42028705,0.00022063,2]
[364996063,1749387048710,-500.49109683,0.00022063,2]
[364996064,1749387048721,-182.94440693,0.00022093,2]
[364996065,1749387048732,-153.0,0.00022137,2]
[364996066,1749387048743,-176.7524085,0.00022137,2]
[364996067,1749387048754,-153.0,0.00022137,2]
[364996068,1749387048764,-158.6873432,0.00022137,2]
[364996069,1749387048775,-573.126752,0.00022137,2]
[364996070,1749387048786,-176.7524085,0.00022137,2]
[364996071,1749387048797,-573.126752,0.00022137,2]
[364996072,1749387048807,-158.6873432,0.00022137,2]
[364996073,1749387048819,-304.4243004,0.00022137,2]
[364996074,1749387048830,-353.504817,0.00022137,2]
[364996075,1749387048841,-153.0,0.00022137,2]
[364996076,1749387048851,-153.0,0.00022137,2]
[364996077,1749387048863,-573.126752,0.00022137,2]
[364996078,1749387048874,-573.126752,0.00022137,2]
[364996079,1749387048885,-153.0,0.00022137,2]
[364996080,1749387048895,-153.0,0.00022137,2]
[364996081,1749387048906,-385.0175209,0.00022137,2]
[364996082,1749387048917,-502.47130591,0.00022191,4]
[364996083,1749387048927,-454.4415338,0.00022191,4]
[364996084,1749387048937,-499.58226701,0.00022191,4]
[364996085,1749387048947,-474.27,0.00022191,4]
[364996086,1749387048958,-583.94,0.00022191,4]
[364996087,1749387048969,-1099.04,0.00022191,4]
[364996088,1749387048980,-440.0,0.00022191,4]
[364996089,1749387048990,-400.0,0.00022191,2]
[364996090,1749387049000,-440.0,0.00022191,4]
[364996091,1749387049010,-440.0,0.00022191,4]
[364996092,1749387049021,-440.0,0.00022191,4]
[364996093,1749387049032,-1405.05,0.00022191,4]
[364996094,1749387049042,-440.0,0.00022191,4]
[364996095,1749387049052,-787.19,0.00022191,4]
[364996096,1749387049062,-440.0,0.00022191,4]
[364996097,1749387049074,-440.0,0.00022191,4]
[364996098,1749387049084,-1464.15,0.00022191,4]
[364996099,1749387049095,-440.0,0.00022191,4]
[364996100,1749387049106,-440.0,0.00022191,4]
[364996101,1749387049116,-440.0,0.00022191,4]
[364996102,1749387049126,-440.0,0.00022191,4]
[364996103,1749387049137,-440.0,0.00022191,4]
[364996104,1749387049150,-717.45,0.00022191,4]
[364996105,1749387049161,-1568.99,0.00022191,4]
[364996106,1749387049171,-771.02,0.00022191,4]
[364996107,1749387049182,-5270.98,0.00022191,4]
[364996108,1749387049193,-642.78,0.00022191,2]
[364996109,1749387049204,-3877.05,0.00022191,4]
[364996110,1749387049214,-365.55,0.00022191,4]
[364996111,1749387049225,-969.82,0.00022191,4]
[364996112,1749387049235,-2682.54,0.00022191,4]
[364996113,1749387049246,-440.0,0.00022191,4]
[364996114,1749387049256,-2559.93,0.00022191,4]
[364996115,1749387049266,-1887.69,0.00022191,4]
[364996116,1749387049277,-3688.68,0.00022191,4]
[364996117,1749387049287,-455.86,0.00022191,4]
[364996118,1749387049300,-570.95,0.00022191,4]
[364996119,1749387049311,-499.81,0.00022191,4]
[364996120,1749387049323,-2620.54,0.00022191,4]
[364996121,1749387049334,-3461.52,0.00022191,4]
[364996122,1749387049345,-2095.87,0.00022191,4]
[364996123,1749387049355,-718.43,0.00022191,4]
[364996124,1749387049365,-440.0,0.00022191,4]
[364996125,1749387049376,-440.0,0.00022191,4]
[364996126,1749387049388,-993.84,0.00022191,4]
[364996127,1749387049397,-6.80367644,0.00022191,4]
[364996128,1749387049879,-1237.17,0.00019178,2]
[364996129,1749387049889,-440.0,0.00019178,2]
[364996130,1749387049899,-1237.17,0.00019452,2]
[364996131,1749387049908,-287.62,0.00019452,2]
[364996132,1749387049918,-1237.17,0.00019726,2]
[364996133,1749387049928,-1237.17,0.0002,2]
[364996134,1749387049938,-440.0,0.00020273,2]
[364996135,1749387049947,-1237.17,0.00020273,2]
[364996136,1749387049957,-440.0,0.00020547,2]
[364996137,1749387049967,-1237.17,0.00020547,2]
[364996138,1749387049977,-500.0,0.00020547,2]
[364996139,1749387049986,-440.0,0.00020821,2]
[364996140,1749387049996,-1237.17,0.00020821,2]
[364996141,1749387050005,-440.0,0.00021095,2]
[364996142,1749387050016,-500.0,0.00021095,3]
[364996143,1749387050026,-1237.17,0.00021095,2]
[364996144,1749387050036,-440.0,0.00021369,2]
[364996145,1749387050046,-1237.17,0.00021369,2]
[364996146,1749387050055,-440.0,0.00021643,2]
[364996147,1749387050065,-500.0,0.00021643,4]
[364996148,1749387050076,-1237.17,0.00021643,2]
[364996149,1749387050087,-440.0,0.00021917,2]
[364996150,1749387050097,-1237.17,0.00021917,2]
[364996151,1749387050107,-2795.41632356,0.00022191,4]
[364996152,1749387050118,-780.04,0.00022191,4]
[364996153,1749387050127,-910.07,0.00022191,4]
[364996154,1749387050138,-440.0,0.00022191,4]
[364996155,1749387050151,-500.0,0.00022191,5]
[364996156,1749387050161,-1237.17,0.00022191,4]
[364996157,1749387050337,-500.0,0.000222,2]
[364996158,1749387050348,-1002.01125953,0.000222,2]
[364996159,1749387050359,-500.0,0.000222,2]
[364996160,1749387050369,-40469.46,0.000222,2]
[364996161,1749387050379,-321.59414684,0.000222,69]
[364996162,1749387050390,-321.59414682,0.000222,69]
[364996163,1749387050400,-321.59414682,0.000222,69]
[364996164,1749387050411,-151.0,0.000222,7]
[364996165,1749387050421,-151.0,0.000222,7]
[364996166,1749387050431,-800.0,0.00022278,2]
[364996167,1749387050440,-168.37605534,0.00022291,2]
[364996168,1749387050450,-151.0,0.000223,8]
[364996169,1749387050460,-151.0,0.000223,6]
[364996170,1749387050470,-160.0,0.00022306,6]
[364996171,1749387050480,-5000.0,0.00022371,2]
[364996172,1749387050490,-151.0,0.00022371,7]
[364996173,1749387050500,-151.0,0.00022371,7]
[364996174,1749387050509,-151.0,0.00022371,7]
[364996175,1749387050519,-151.0,0.00022371,7]
[364996176,1749387050530,-151.0,0.00022371,7]
[364996177,1749387050539,-151.0,0.00022371,7]
[364996178,1749387050549,-151.0,0.00022371,7]
[364996179,1749387050559,-151.0,0.00022371,7]
[364996180,1749387050569,-151.0,0.00022371,7]
[364996181,1749387050579,-800.0,0.00022391,2]
[364996182,1749387050589,-506.47459037,0.00022403,2]
[364996183,1749387050598,-800.0,0.00022435,2]
[364996184,1749387050608,-1000.0,0.0002244,2]
[364996185,1749387050618,-1001.34608433,0.0002244,2]
[364996186,1749387050628,-439.03,0.00022443,30]
[364996187,1749387050638,-151.0,0.00022465,7]
[364996188,1749387050648,-151.0,0.00022465,7]
[364996189,1749387050658,-165.895707,0.00022465,7]
[364996190,1749387050668,-151.0,0.00022465,7]
[364996191,1749387050678,-151.0,0.00022465,7]
[364996192,1749387050688,-440.0,0.00022465,4]
[364996193,1749387050699,-400.0,0.00022465,2]
[364996194,1749387050708,-440.0,0.00022465,4]
[364996195,1749387050719,-440.0,0.00022465,4]
[364996196,1749387050729,-440.0,0.00022465,4]
[364996197,1749387050740,-1405.05,0.00022465,4]
[364996198,1749387050750,-440.0,0.00022465,4]
[364996199,1749387050760,-787.19,0.00022465,4]
[364996200,1749387050770,-440.0,0.00022465,4]
[364996201,1749387050781,-440.0,0.00022465,4]
[364996202,1749387050791,-1464.15,0.00022465,4]
[364996203,1749387050801,-440.0,0.00022465,4]
[364996204,1749387050811,-440.0,0.00022465,4]
[364996205,1749387050821,-440.0,0.00022465,4]
[364996206,1749387050832,-300.54313436,0.00022465,4]
[364996207,1749387050842,-193.09013383,0.00022465,4]
[364996208,1749387050851,-717.45,0.00022465,4]
[364996209,1749387050862,-1568.99,0.00022465,4]
[364996210,1749387050872,-771.02,0.00022465,4]
[364996211,1749387050883,-500.0,0.00022465,2]
[364996212,1749387050893,-5270.98,0.00022465,4]
[364996213,1749387050903,-642.78,0.00022465,2]
[364996214,1749387050913,-3877.05,0.00022465,4]
[364996215,1749387050923,-969.82,0.00022465,4]
[364996216,1749387050933,-2682.54,0.00022465,4]
[364996217,1749387050944,-440.0,0.00022465,4]
[364996218,1749387050954,-151.0,0.00022465,7]
[364996219,1749387050964,-2559.93,0.00022465,4]
[364996220,1749387050974,-151.0,0.00022465,7]
[364996221,1749387050984,-151.0,0.00022465,2]
[364996222,1749387050993,-1887.69,0.00022465,4]
[364996223,1749387051003,-238.44426,0.00022465,2]
[364996224,1749387051013,-3688.68,0.00022465,4]
[364996225,1749387051023,-455.86,0.00022465,4]
[364996226,1749387051033,-151.0,0.00022465,7]
[364996227,1749387051043,-151.0,0.00022465,7]
[364996228,1749387051052,-570.95,0.00022465,4]
[364996229,1749387051062,-499.81,0.00022465,4]
[364996230,1749387051073,-2620.54,0.00022465,4]
[364996231,1749387051083,-3461.52,0.00022465,4]
[364996232,1749387051093,-2095.87,0.00022465,4]
[364996233,1749387051102,-718.43,0.00022465,4]
[364996234,1749387051112,-440.0,0.00022465,4]
[364996235,1749387051122,-440.0,0.00022465,4]
[364996236,1749387051132,-993.84,0.00022465,4]
[364996237,1749387051144,-2802.22,0.00022465,4]
[364996238,1749387051156,-780.04,0.00022465,4]
[364996239,1749387051167,-910.07,0.00022465,4]
[364996240,1749387051176,-440.0,0.00022465,4]
[364996241,1749387051187,-1237.17,0.00022465,4]
[364996242,1749387051197,-1009.61112234,0.00022468,2]
[364996243,1749387051207,-1000.0,0.00022468,2]
[364996244,1749387051218,-1200.0,0.00022468,2]
[364996245,1749387051229,-1000.0,0.00022468,2]
[364996246,1749387051238,-1000.0,0.00022468,2]
[364996247,1749387051248,-1000.0,0.00022468,2]
[364996248,1749387051257,-2048.82,0.00022486,2]
[364996249,1749387051267,-800.0,0.00022582,2]
[364996250,1749387051276,-364.8515477,0.0002263,2]
[364996251,1749387051286,-364.8515477,0.0002263,2]
[364996252,1749387051297,-354.9729386,0.0002263,2]
[364996253,1749387051306,-800.0,0.00022632,2]
[364996254,1749387051316,-4000.0,0.00022645,4]
[364996255,1749387051326,-638.66530525,0.00022651,2]
[364996256,1749387051335,-151.0,0.000227,8]
[364996257,1749387051345,-12500.0,0.00022721,3]
[364996258,1749387051355,-160.0,0.00022721,3]
[364996259,1749387051365,-12500.0,0.0002273,3]
[364996260,1749387051375,-12500.0,0.00022739,3]
[364996261,1749387051385,-440.0,0.00022739,4]
[364996262,1749387051395,-373.64135818,0.00022739,2]
[364996263,1749387051404,-440.0,0.00022739,4]
[364996264,1749387051415,-440.0,0.00022739,4]
[364996265,1749387051424,-440.0,0.00022739,4]
[364996266,1749387051434,-1405.05,0.00022739,4]
[364996267,1749387051444,-440.0,0.00022739,4]
[364996268,1749387051455,-787.19,0.00022739,4]
[364996269,1749387051465,-151.0,0.00022739,7]
[364996270,1749387051476,-151.0,0.00022739,7]
[364996271,1749387051488,-151.0,0.00022739,7]
[364996272,1749387051498,-153.718207,0.00022739,7]
[364996273,1749387051508,-440.0,0.00022739,4]
[364996274,1749387051518,-440.0,0.00022739,4]
[364996275,1749387051527,-1464.15,0.00022739,4]
[364996276,1749387051537,-440.0,0.00022739,4]
[364996277,1749387051547,-440.0,0.00022739,4]
[364996278,1749387051557,-440.0,0.00022739,4]
[364996279,1749387051566,-717.45,0.00022739,4]
[364996280,1749387051576,-1568.99,0.00022739,4]
[364996281,1749387051586,-771.02,0.00022739,4]
[364996282,1749387051596,-151.0,0.00022739,7]
[364996283,1749387051606,-5270.98,0.00022739,4]
[364996284,1749387051615,-169.921127,0.00022739,7]
[364996285,1749387051625,-642.78,0.00022739,2]
[364996286,1749387051635,-3877.05,0.00022739,4]
[364996287,1749387051645,-969.82,0.00022739,4]
[364996288,1749387051655,-2682.54,0.00022739,4]
[364996289,1749387051665,-151.0,0.00022739,7]
[364996290,1749387051675,-151.0,0.00022739,7]
[364996291,1749387051685,-440.0,0.00022739,4]
[364996292,1749387051696,-2559.93,0.00022739,4]
[364996293,1749387051706,-1887.69,0.00022739,4]
[364996294,1749387051716,-3688.68,0.00022739,4]
[364996295,1749387051726,-455.86,0.00022739,4]
[364996296,1749387051736,-570.95,0.00022739,4]
[364996297,1749387051746,-499.81,0.00022739,4]
[364996298,1749387051756,-2620.54,0.00022739,4]
[364996299,1749387051766,-3461.52,0.00022739,4]
[364996300,1749387051775,-2095.87,0.00022739,4]
[364996301,1749387051785,-718.43,0.00022739,4]
[364996302,1749387051795,-440.0,0.00022739,4]
[364996303,1749387051805,-993.84,0.00022739,4]
[364996304,1749387051815,-2802.22,0.00022739,4]
[364996305,1749387051825,-780.04,0.00022739,4]
[364996306,1749387051835,-910.07,0.00022739,4]
[364996307,1749387051845,-440.0,0.00022739,4]
[364996308,1749387051855,-500.0,0.00022739,6]
[364996309,1749387051864,-1237.17,0.00022739,4]
[364996310,1749387051874,-587.0,0.00022763,2]
[364996311,1749387051883,-151.0,0.000228,6]
[364996312,1749387051893,-5000.0,0.00022919,2]
[364996313,1749387051903,-349.5189111,0.00022959,2]
[364996314,1749387051912,-571.3360607,0.00022959,2]
[364996315,1749387051922,-306.10610434,0.00022988,2]
[364996316,1749387051931,-800.0,0.00022992,2]
[364996317,1749387051941,-500.0,0.00023,2]
[364996318,1749387051950,-160.0,0.00023,3]
[364996319,1749387051960,-2730.48,0.00023,7]
[364996320,1749387051970,-229.60437222,0.00023,3]
[364996321,1749387051979,-170.434325,0.00023013,7]
[364996322,1749387051988,-170.434325,0.00023013,7]
[364996323,1749387051998,-151.0,0.00023013,7]
[364996324,1749387052008,-151.0,0.00023013,7]
[364996325,1749387052017,-151.0,0.00023013,7]
[364996326,1749387052027,-440.0,0.00023013,4]
[364996327,1749387052037,-406.310503,0.00023013,4]
[364996328,1749387052046,-440.0,0.00023013,4]
[364996329,1749387052055,-440.0,0.00023013,4]
[364996330,1749387052065,-1405.05,0.00023013,4]
[364996331,1749387052074,-440.0,0.00023013,4]
[364996332,1749387052084,-787.19,0.00023013,4]
[364996333,1749387052093,-440.0,0.00023013,4]
[364996334,1749387052102,-440.0,0.00023013,4]
[364996335,1749387052111,-1464.15,0.00023013,4]
[364996336,1749387052122,-440.0,0.00023013,4]
[364996337,1749387052133,-440.0,0.00023013,4]
[364996338,1749387052146,-440.0,0.00023013,4]
[364996339,1749387052156,-717.45,0.00023013,4]
[364996340,1749387052166,-1568.99,0.00023013,4]
[364996341,1749387052175,-771.02,0.00023013,4]
[364996342,1749387052185,-500.0,0.00023013,2]
[364996343,1749387052197,-5270.98,0.00023013,4]
[364996344,1749387052206,-642.78,0.00023013,2]
[364996345,1749387052216,-3877.05,0.00023013,4]
[364996346,1749387052227,-969.82,0.00023013,4]
[364996347,1749387052236,-2682.54,0.00023013,4]
[364996348,1749387052246,-440.0,0.00023013,4]
[364996349,1749387052256,-2559.93,0.00023013,4]
[364996350,1749387052269,-1887.69,0.00023013,4]
[364996351,1749387052291,-3688.68,0.00023013,4]
[364996352,1749387052305,-455.86,0.00023013,4]
[364996353,1749387052315,-570.95,0.00023013,4]
[364996354,1749387052325,-499.81,0.00023013,4]
[364996355,1749387052335,-2620.54,0.00023013,4]
[364996356,1749387052346,-3461.52,0.00023013,4]
[364996357,1749387052356,-2095.87,0.00023013,4]
[364996358,1749387052366,-718.43,0.00023013,4]
[364996359,1749387052376,-440.0,0.00023013,4]
[364996360,1749387052387,-993.84,0.00023013,4]
[364996361,1749387052608,-2802.22,0.00023013,4]
[364996362,1749387052619,-780.04,0.00023013,4]
[364996363,1749387052630,-910.07,0.00023013,4]
[364996364,1749387052640,-585.92,0.00023013,4]
[364996365,1749387052651,-1237.17,0.00023013,4]
[364996366,1749387052661,-501.73158183,0.00023016,2]
[364996367,1749387052671,-1800.0,0.00023016,2]
[364996368,1749387052681,-1500.0,0.00023016,2]
[364996369,1749387052690,-160.0,0.00023057,7]
[364996370,1749387052699,-2200.0,0.00023074,2]
[364996371,1749387052710,-321.59414682,0.0002308,73]
[364996372,1749387052719,-151.0,0.000231,6]
[364996373,1749387052729,-215.0738,0.00023192,2]
[364996374,1749387052739,-151.0,0.000232,9]
[364996375,1749387052749,-1607.79,0.000232,7]
[364996376,1749387052759,-1002.559488,0.00023225,3]
[364996377,1749387052769,-800.0,0.00023228,2]
[364996378,1749387052779,-800.0,0.00023248,2]
[364996379,1749387052789,-800.0,0.00023276,2]
[364996380,1749387052799,-440.0,0.00023287,4]
[364996381,1749387052809,-440.0,0.00023287,4]
[364996382,1749387052819,-440.0,0.00023287,4]
[364996383,1749387052950,-1405.05,0.00023287,4]
[364996384,1749387052961,-285.04,0.00023287,4]
[364996385,1749387052971,-787.19,0.00023287,4]
[364996386,1749387052980,-440.0,0.00023287,4]